Cogmind - Beta 14 @@@ ROGUE MODE // 2024.11.26 @ 23:40:43 Player: akira Result: Self-destructed Performance ------------- Evolutions (6) 3000 Regions Visited (13) 2600 Robots Destroyed (61) 305 Value Destroyed (1314) 1314 Prototype IDs (49) 980 Alien Tech Used (0) 0 Bonus (131) 131 TOTAL SCORE: 8330 Bonus ------- Aligned with FarCom 300 Friendly Fire -169 Cogmind --------- Core Integrity 702/1150 Matter 5/300 Energy 74/100 System Corruption 11% Temperature Cool (0) Movement Flying (97) Ox1 Location -4/Factory Parts ------- > --- POWER (2) -------- (None) > --- PROPULSION (5) --- Improved Cesium-ion Thruster Cooled VTOL Module > --- UTILITY (10) ----- Medium Storage Unit Enhanced Optical Array Experimental Signal Interpreter Microactuators Point Defense Array Hacking Suite Hacking Suite Hacking Suite Hacking Suite > --- WEAPON (2) ------- Chainsword > --- INVENTORY (10) --- Cooled VTOL Module Biomechanical Wings Impulse Thruster Superbattery (1500) Improved Light Armor Plating Drone Bay (2/2) Micro-nuke Launcher Peak State ------------ > --- POWER ------------ Enhanced Nuclear Core Micro Fission Core > --- PROPULSION ------- Cooled VTOL Module Cooled VTOL Module Biomechanical Wings Biomechanical Wings Field Propulsion Drive > --- UTILITY ---------- Medium Storage Unit Enhanced Optical Array Advanced Signal Interpreter Experimental Signal Interpreter Microactuators Hacking Suite Hacking Suite Hacking Suite Hacking Suite System Shield > --- WEAPON ----------- Chainsword > --- INVENTORY -------- Improved Cesium-ion Thruster Cooled VTOL Module Biomechanical Wings Superbattery Structural Scanner Improved Light Armor Plating Drone Bay Heavy Missile Launcher Chainsword Ionic Axe [Rating: 86] Favorites ----------- Power Enhanced Nuclear Core Engine Heavy Ion Engine Power Core Enhanced Nuclear Core Reactor Light Antimatter Reactor Propulsion Xenon Bombardment Thruster Treads Improved Treads Wheel Compact Wheel Flight Unit Xenon Bombardment Thruster Utility Hacking Suite Device Structural Scanner Storage Medium Storage Unit Processor Advanced Visual Processing Unit Hackware Hacking Suite Protection Hardened Light Armor Plating Weapon Chainsword Energy Cannon Ion Cannon Ballistic Gun Assault Rifle Ballistic Cannon Improved Light Cannon Launcher EMP Blaster Special Weapon Mining Laser Impact Weapon Heavy Mace Slashing Weapon Chainsword Piercing Weapon Spear Build | -11 -10 -10 -9 -9 -9 -8 -8 -7 -6 -5 -4 -4 -4 ------- Run | Yrd Mat Min Mat Min Exi Min Mat Fac Fac Fac Fac Was Fac Slots Evolved 12 | . . . 2 . . . 2 2 2 2 2 . . Power 1 | . . . . . . . . . . . 1 . . Propulsion 3 | . . . . . . . 1 1 . 1 . . . Utility 8 | . . . 2 . . . 1 1 2 1 1 . . Weapon . | . . . . . . . . . . . . . . Parts Attached 118 | 6 5 1 12 7 1 3 12 16 17 9 2 5 22 Power 19 | 1 2 1 3 1 . . 2 3 . 2 1 1 2 Engine 9 | 1 2 1 3 1 . . . 1 . . . . . Core 9 | . . . . . . . 2 2 . 2 1 1 1 Reactor 1 | . . . . . . . . . . . . . 1 Propulsion 34 | 2 1 . 4 2 . 1 3 4 5 2 . 2 8 Treads 8 | 2 . . 3 2 . 1 . . . . . . . Leg . | . . . . . . . . . . . . . . Wheel 1 | . 1 . . . . . . . . . . . . Hover . | . . . . . . . . . . . . . . Flight 25 | . . . 1 . . . 3 4 5 2 . 2 8 Utility 43 | 1 1 . 5 1 1 . 4 5 11 4 1 2 7 Device 23 | . 1 . 1 1 . . 1 1 8 3 1 2 4 Storage 4 | 1 . . 2 . . . 1 . . . . . . Processor 9 | . . . 1 . 1 . 1 2 . 1 . . 3 Hackware 6 | . . . 1 . . . . 2 3 . . . . Protection 1 | . . . . . . . 1 . . . . . . Artifact . | . . . . . . . . . . . . . . Weapon 22 | 2 1 . . 3 . 2 3 4 1 1 . . 5 Energy Gun . | . . . . . . . . . . . . . . Energy Cannon 1 | . . . . . . 1 . . . . . . . Ballistic Gun 5 | 2 1 . . 2 . . . . . . . . . Ballistic Cannon 1 | . . . . 1 . . . . . . . . . Launcher 1 | . . . . . . 1 . . . . . . . Special Weapon 1 | . . . . . . . 1 . . . . . . Impact Weapon 3 | . . . . . . . 1 1 . . . . 1 Slashing Weapon 9 | . . . . . . . 1 2 1 1 . . 4 Piercing Weapon 1 | . . . . . . . . 1 . . . . . Special Melee Weapon . | . . . . . . . . . . . . . . Unidentified Prototypes 10 | . . . 2 . . . . 3 1 . . 1 3 Parts Lost 17 | . 2 . . 2 . 2 1 . 1 . . . 9 Power 4 | . 1 . . . . . 1 . . . . . 2 Propulsion 6 | . 1 . . . . 1 . . . . . . 4 Utility 3 | . . . . . . . . . 1 . . . 2 Weapon 4 | . . . . 2 . 1 . . . . . . 1 Highest Loss Streak 7 | . 2 . . 2 . 1 1 . 1 . . . 7 To Critical Strikes . | . . . . . . . . . . . . . . Average Slot Usage (%) 95 | . 98 100 97 99 100 99 88 97 94 89 89 85 90 Engine 4 | . 13 14 11 11 11 11 . . . . . . . Core 4 | . . . . . . . 8 6 6 5 10 10 9 Treads 8 | . 23 14 19 22 22 21 1 . . . . . . Flight 16 | . . . . . . . 24 30 26 29 26 26 25 Device 8 | . 13 14 11 11 9 . 7 7 8 6 10 10 7 Storage 8 | . 14 14 11 11 11 11 9 7 6 5 5 5 5 Processor 8 | . . . 8 11 12 22 18 8 6 5 5 5 9 Hackware 18 | . . . 10 11 11 11 9 20 30 29 26 26 25 Ballistic Gun 6 | . 28 28 22 15 11 3 . . . . . . . Ballistic Cannon 1 | . . . . 5 11 11 . . . . . . . Slashing Weapon 3 | . . . . . . . . 6 6 5 5 1 4 Peak Build Rating 86 | 6 8 8 17 18 18 20 33 49 55 65 73 80 86 Average Rating 40 | 3 7 8 14 17 17 18 26 43 53 61 70 72 78 On Entrance 30 | . 6 8 8 17 17 18 17 30 49 55 65 70 72 Naked Turns . | . . . . . . . . . . . . . . Heaviest Build 38 | 14 15 13 33 34 34 38 32 24 24 27 29 31 31 Greatest Support 46 | 40 40 16 46 46 46 43 43 24 26 33 29 31 33 Greatest Overweight (x) 4 | 4 . . 1 . . 1 . . . . . . . Average Overweight (x) . | . . . . . . . . . . . . . . Largest Inventory Capacity 15 | 8 8 8 15 15 15 15 15 10 10 10 10 10 10 Average Capacity 10 | 6 8 8 13 15 15 15 10 10 10 10 10 10 10 Most Carried 15 | 7 8 8 15 15 15 15 15 10 10 10 10 10 10 Average Carried 10 | 4 7 8 12 14 14 14 9 9 9 9 9 9 9 Final Capacity 15 | 8 8 8 15 15 15 15 10 10 10 10 10 10 10 Final Carried 15 | 6 8 8 15 15 15 15 10 10 10 10 9 10 7 Class Distribution -------------------- 51% | Hacker-Scout 34% | Mutant 5% | Scout 5% | Scavenger-Mutant Dominant Class ---------------- Mutant | -10/Materials Mutant | -10/Mines Mutant | -9/Materials Mutant | -9/Mines Mutant | -9/Exiles Mutant | -8/Mines Scout | -8/Materials Hacker-Scout | -7/Factory Hacker-Scout | -6/Factory Hacker-Scout | -5/Factory Hacker-Scout | -4/Factory Hacker-Scout | -4/Waste Hacker-Scout | -4/Factory Resources | -11 -10 -10 -9 -9 -9 -8 -8 -7 -6 -5 -4 -4 -4 ----------- Run | Yrd Mat Min Mat Min Exi Min Mat Fac Fac Fac Fac Was Fac Matter Collected 1887 | 205 330 31 316 113 . 261 111 160 286 60 . . 14 Remotely . | . . . . . . . . . . . . . . Salvage Created 1917 | . 396 39 357 155 . 209 26 209 260 97 . . 169 Parts 132 | . 39 2 20 13 . 12 3 12 21 4 . . 6 Haulers Intercepted 9 | . . . 2 . . . 1 3 1 1 . . 1 Recyclers Shooed . | . . . . . . . . . . . . . . Parts Field Recycled . | . . . . . . . . . . . . . . Retrieved Matter . | . . . . . . . . . . . . . . Parts Self-Destructed . | . . . . . . . . . . . . . . Prevented . | . . . . . . . . . . . . . . Kills | -11 -10 -10 -9 -9 -9 -8 -8 -7 -6 -5 -4 -4 -4 ------- Run | Yrd Mat Min Mat Min Exi Min Mat Fac Fac Fac Fac Was Fac Combat Hostiles Destroyed 43 | . 9 2 8 8 . 11 . 1 3 . . . 1 Melee 5 | . . . . . . . . 1 3 . . . 1 Guns 25 | . 9 2 8 5 . 1 . . . . . . . Cannons 10 | . . . . 3 . 7 . . . . . . . AOE 2 | . . . . . . 2 . . . . . . . Classes Destroyed 11 | . 4 . 3 . . . . 2 1 . . . 1 Worker 1 | . . . . . . . . 1 . . . . . Builder 1 | . . . . . . . . . . . . . 1 Hauler 9 | . . . 2 . . . 1 3 1 1 . . 1 Operator 2 | . 2 . . . . . . . . . . . . Drone 1 | . . . . . . . . . 1 . . . . Watcher 5 | . 3 . 1 . . . . . 1 . . . . Swarmer 23 | . 3 2 4 6 . 8 . . . . . . . Grunt 12 | . 6 . 2 2 . 2 . . . . . . . Brawler 2 | . . . 1 . . 1 . . . . . . . Sentry 1 | . . . 1 . . . . . . . . . . Programmer 5 | . . . . . . . . 1 3 . . . 1 Best Kill Streak 4 | . 3 2 4 4 . 3 1 1 1 1 . . 1 Combat Bots Only 4 | . 3 2 4 4 . 3 . 1 1 . . . 1 Max Kills in Single Turn 2 | . 1 2 1 1 . 2 1 1 1 1 . . 1 Gunslinging 1 | . . 1 . . . . . . . . . . . Exploded 2 | . . . . . . 2 . . . . . . . Melee 1 | . . . . . . . . 1 1 . . . 1 Uniques/NPCs Destroyed . | . . . . . . . . . . . . . . Combat | -11 -10 -10 -9 -9 -9 -8 -8 -7 -6 -5 -4 -4 -4 -------- Run | Yrd Mat Min Mat Min Exi Min Mat Fac Fac Fac Fac Was Fac Hostile Shots Fired 323 | . 42 16 34 75 . 48 . 2 51 . . . 55 Missed 110 | . 12 5 8 19 . 14 . 1 35 . . . 16 Damage Taken 3023 | . 458 86 297 551 . 411 49 14 181 . . . 976 Core 738 | . 54 . 61 47 . 74 8 . 46 . . . 448 Absorbed by Shields 16 | . . . . . . . . . 16 . . . . Regen/Repaired (Parts) 27 | . . . . . . . . . . 27 . . . Core Remaining (%) 89 | 100 . 78 . . . 54 98 100 94 100 . . . Volleys Fired 144 | . 40 5 29 33 . 25 12 . . . . . . Largest 2 | . 2 2 2 2 . 2 1 . . . . . . Hottest 100 | . 40 40 40 59 . 72 100 . . . . . . Shots Fired 245 | . 80 10 59 44 . 40 12 . . . . . . Gun 196 | . 80 10 59 35 . 12 . . . . . . . Cannon 32 | . . . . 9 . 23 . . . . . . . Launcher 5 | . . . . . . 5 . . . . . . . Special 12 | . . . . . . . 12 . . . . . . Kinetic 228 | . 80 10 59 44 . 35 . . . . . . . Thermal 12 | . . . . . . . 12 . . . . . . Explosive . | . . . . . . . . . . . . . . Electromagnetic 5 | . . . . . . 5 . . . . . . . Robot Hit Streak 10 | . 7 2 7 8 . 10 8 . . . . . . Robot Miss Streak 6 | . 5 4 4 6 . 2 2 . . . . . . Penetration Max . | . . . . . . . . . . . . . . Secondary Targets 2 | . 1 1 . . . . . . . . . . . Max Gunslinging Chain 1 | . 1 1 . . . . . . . . . . . Shots Hit Robots 192 | . 49 3 39 29 . 27 4 10 12 2 . . 17 Core Hits 82 | . 20 2 16 13 . 15 1 3 6 1 . . 5 Critical Kills . | . . . . . . . . . . . . . . Critical Parts Destroyed 2 | . 2 . . . . . . . . . . . . Critical Strikes 8 | . 2 . . . . 1 . 1 2 . . . 2 Destroy 2 | . 2 . . . . . . . . . . . . Blast 1 | . . . . . . 1 . . . . . . . Sever 5 | . . . . . . . . 1 2 . . . 2 Melee Attacks 270 | . . . . . . . 2 75 93 30 9 . 61 Impact 11 | . . . . . . . . 11 . . . . . Slashing 234 | . . . . . . . 2 48 84 30 9 . 61 Piercing 25 | . . . . . . . . 16 9 . . . . Sneak Attacks 10 | . . . . . . . 1 5 1 1 . . 2 Combat Hostiles . | . . . . . . . . . . . . . . Follow-up Attacks 2 | . . . . . . . . 2 . . . . . Damage Inflicted 4044 | . 617 38 499 324 . 535 90 517 540 132 . . 752 Guns 1487 | . 617 38 499 233 . 100 . . . . . . . Cannons 406 | . . . . 88 . 318 . . . . . . . Explosions 117 | . . . . . . 117 . . . . . . . Melee 1983 | . . . . . . . 42 517 540 132 . . 752 Ramming 3 | . . . . 3 . . . . . . . . . Kinetic 1893 | . 617 38 499 321 . 418 . . . . . . . Thermal 48 | . . . . . . . 48 . . . . . . Explosive . | . . . . . . . . . . . . . . Electromagnetic 117 | . . . . . . 117 . . . . . . . Impact 48 | . . . . . . . . 48 . . . . . Slashing 1593 | . . . . . . . 42 219 448 132 . . 752 Piercing 342 | . . . . . . . . 250 92 . . . . Highest Corruption 11 | . . . 2 2 2 3 . . 5 . . . 11 Average Corruption 3 | . . . 2 2 2 2 . . 5 . . . 2 Corruption Purged . | . . . . . . . . . . . . . . Corruption Blocked . | . . . . . . . . . . . . . . Effects 82 | . . . 3 9 7 14 . . 46 . . . 3 Message Errors 11 | . . . 1 2 2 2 . . 3 . . . 1 Matter Fused 30 | . . . . 3 4 5 . . 16 . . . 2 Heat Flow Errors 7 | . . . . . . . . . 7 . . . . Energy Discharges 7 | . . . 1 . . 1 . . 5 . . . . Parts Rejected 1 | . . . . . . . . . 1 . . . . Data Loss (minor) 11 | . . . . . 1 2 . . 8 . . . . Data Loss (major) 7 | . . . . 2 . . . . 5 . . . . Misfires 4 | . . . 1 1 . 2 . . . . . . . Alerts 2 | . . . . 1 . . . . 1 . . . . Weapon Failures 2 | . . . . . . 2 . . . . . . . Overload Shots . | . . . . . . . . . . . . . . Overflow Damage 153 | . . . . 4 . 10 4 67 22 18 . . 28 Projectiles 14 | . . . . 4 . 10 . . . . . . . Explosions . | . . . . . . . . . . . . . . Melee 139 | . . . . . . . 4 67 22 18 . . 28 Knockbacks 7 | . . . . 1 . 6 . . . . . . . Impact . | . . . . . . . . . . . . . . Kinetic 5 | . . . . 1 . 4 . . . . . . . Secondary 2 | . . . . . . 2 . . . . . . . Self-Inflicted Damage 42 | . . . . . . 42 . . . . . . . Shots 3 | . . . . . . 3 . . . . . . . Rammed 1 | . . . . 1 . . . . . . . . . Targets Rammed 1 | . . . . 1 . . . . . . . . . Kicked . | . . . . . . . . . . . . . . Crushed . | . . . . . . . . . . . . . . Highest Temperature 257 | . 8 . 18 28 . 70 116 2 257 32 . . 76 Average Temperature 42 | . 2 . 13 11 . 24 36 2 69 17 . . 33 Received Heat Transfer 603 | . 180 . 84 159 . 90 . . 12 . . . 78 Siege Activations . | . . . . . . . . . . . . . . Robots Corrupted 1 | . . . . . . 1 . . . . . . . Combat Hostiles 1 | . . . . . . 1 . . . . . . . Parts Fried 3 | . . . . . . 1 . 2 . . . . . Impact Corruptions 2 | . . . . . . 1 . 1 . . . . . Robots Melted . | . . . . . . . . . . . . . . Combat Hostiles . | . . . . . . . . . . . . . . Parts Melted . | . . . . . . . . . . . . . . Heat Transferred 100 | . . . . . . . 100 . . . . . . Parts Sabotaged . | . . . . . . . . . . . . . . Parts Stolen . | . . . . . . . . . . . . . . Parts Stripped . | . . . . . . . . . . . . . . Power Chain Reactions . | . . . . . . . . . . . . . . Alert | -11 -10 -10 -9 -9 -9 -8 -8 -7 -6 -5 -4 -4 -4 ------- Run | Yrd Mat Min Mat Min Exi Min Mat Fac Fac Fac Fac Was Fac Peak Influence 302 | . 251 61 173 182 . 202 61 83 207 302 101 50 201 Initial 100 | . . 6 23 67 . . 7 27 16 100 52 35 28 Average 65 | . 66 59 69 99 . 59 24 33 68 160 73 37 52 Maximum Alert Level 1 | . 1 . . . . 1 . . 1 1 . . 1 Low Security (%) 95 | 100 94 100 100 100 . 85 100 100 99 69 100 100 94 Level 1 4 | . 5 . . . . 14 . . . 30 . . 5 Level 2 . | . . . . . . . . . . . . . . Level 3 . | . . . . . . . . . . . . . . Level 4 . | . . . . . . . . . . . . . . Level 5 . | . . . . . . . . . . . . . . High Security . | . . . . . . . . . . . . . . Max Security . | . . . . . . . . . . . . . . Squads Dispatched 23 | . 2 . . . . . 2 3 9 3 . . 4 Investigation 9 | . . . . . . . 1 2 4 2 . . . Extermination 5 | . . . . . . . . 1 2 . . . 2 Reinforcement 9 | . 2 . . . . . 1 . 3 1 . . 2 Assault . | . . . . . . . . . . . . . . Garrison . | . . . . . . . . . . . . . . Intercept . | . . . . . . . . . . . . . . Searches Triggered . | . . . . . . . . . . . . . . Construction Impeded . | . . . . . . . . . . . . . . Haulers Reinforced 1 | . . . . . . . . . . . . . 1 Active Scanning Responses . | . . . . . . . . . . . . . . Cargo Convoy Interrupts . | . . . . . . . . . . . . . . Stealth | -11 -10 -10 -9 -9 -9 -8 -8 -7 -6 -5 -4 -4 -4 --------- Run | Yrd Mat Min Mat Min Exi Min Mat Fac Fac Fac Fac Was Fac Distress Signals 8 | . 3 . . . . . 1 . 3 1 . . . Communications Jammed . | . . . . . . . . . . . . . . Distress Signals . | . . . . . . . . . . . . . . Times Spotted 127 | . 24 3 11 11 . 12 10 4 32 4 1 1 14 Peak Tracking Total 10 | . 5 3 4 6 . 3 6 4 10 3 1 1 4 Tactical Retreats 16 | . 1 . . 1 . 2 1 . 6 1 1 . 3 Traps | -11 -10 -10 -9 -9 -9 -8 -8 -7 -6 -5 -4 -4 -4 ------- Run | Yrd Mat Min Mat Min Exi Min Mat Fac Fac Fac Fac Was Fac Traps Triggered 12 | . 1 . 1 . . . . 7 2 . 1 . . Indirectly . | . . . . . . . . . . . . . . Trap Hack Attempts . | . . . . . . . . . . . . . . Triggered . | . . . . . . . . . . . . . . Disarmed . | . . . . . . . . . . . . . . Reprogrammed 6 | . . . . . . . . . . . . . 6 Reused . | . . . . . . . . . . . . . . Traps Extracted . | . . . . . . . . . . . . . . Installed . | . . . . . . . . . . . . . . Triggered . | . . . . . . . . . . . . . . Machines | -11 -10 -10 -9 -9 -9 -8 -8 -7 -6 -5 -4 -4 -4 ---------- Run | Yrd Mat Min Mat Min Exi Min Mat Fac Fac Fac Fac Was Fac Machines Disabled . | . . . . . . . . . . . . . . Max in Single Turn . | . . . . . . . . . . . . . . Garrison Access 9 | . . . . . . . . 2 2 2 . . 3 Machines Repaired . | . . . . . . . . . . . . . . Machines Dismantled . | . . . . . . . . . . . . . . Machines Sabotaged . | . . . . . . . . . . . . . . Overloaded Fab Kills . | . . . . . . . . . . . . . . Hacking | -11 -10 -10 -9 -9 -9 -8 -8 -7 -6 -5 -4 -4 -4 --------- Run | Yrd Mat Min Mat Min Exi Min Mat Fac Fac Fac Fac Was Fac Machines Accessed 70 | . 5 . 1 . 1 . 3 20 12 13 2 . 13 Terminals 50 | . 5 . 1 . . . 3 14 8 8 2 . 9 Fabricators 7 | . . . . . . . . 3 2 2 . . . Repair Stations 1 | . . . . . . . . . . 1 . . . Recycling Units 1 | . . . . . . . . . . . . . 1 Scanalyzers 1 | . . . . . . . . 1 . . . . . Garrison Access 9 | . . . . . . . . 2 2 2 . . 3 Total Hacks 176 | . 11 . 4 . 1 . 6 41 39 38 7 . 29 Successful 127 | . 6 . 2 . 1 . 5 29 22 30 6 . 26 Failed 47 | . 5 . 2 . . . 1 11 16 8 1 . 3 Catastrophic 5 | . 2 . . . . . . 2 . 1 . . . Database Lockouts 2 | . . . . . . . . 1 1 . . . . Manual 93 | . 6 . 1 . 1 . 4 23 25 12 5 . 16 Terminals 144 | . 11 . 4 . . . 6 33 32 28 7 . 23 Fabricators 13 | . . . . . . . . 3 5 5 . . . Repair Stations 2 | . . . . . . . . . . 2 . . . Recycling Units 2 | . . . . . . . . . . . . . 2 Scanalyzers 2 | . . . . . . . . 2 . . . . . Garrison Access 12 | . . . . . . . . 3 2 3 . . 4 Terminal Hacks 62 | . 3 . 1 . 1 . 2 14 11 16 4 . 10 Part Schematic 5 | . . . . . . . . 1 1 2 1 . . Prototype ID Bank 6 | . 1 . . . . . . 1 . 2 1 . 1 Open Door 1 | . . . . . . . . . . 1 . . . Open DSF 2 | . . . . . . . . 1 1 . . . . Level Access Points 2 | . . . . . . . . . 1 1 . . . Branch Access Points 1 | . . . . . . . . . 1 . . . . Machine Index 2 | . . . . . . . . . . 1 . . 1 Terminal Index 3 | . . . . . . . . 1 . 1 1 . . Fabricator Index 4 | . . . . . . . . 1 2 . . . 1 Alert Level 9 | . 1 . . . . . . 2 2 2 . . 2 Locate Traps 7 | . . . . . . . . 4 . 2 . . 1 Reprogram Traps 1 | . . . . . . . . . . . . . 1 Dispatch Records 1 | . . . . . . . 1 . . . . . . Patrol Status 1 | . . . . . . . . . . 1 . . . Investigation Status 1 | . . . . . . . . . 1 . . . . Reinforcement Status 1 | . . . . . . . . . . . 1 . . Recall Investigation 4 | . . . . . . . . 1 2 1 . . . Recall Reinforcements 1 | . . . . . . . . . . . . . 1 Hauler Manifests 5 | . 1 . . . . . 1 1 . 1 . . 1 Registered Components 1 | . . . . . . . . . . . . . 1 Registered Prototypes 2 | . . . . . . . . 1 . 1 . . . Zone Layout 1 | . . . 1 . . . . . . . . . . Derelict Proto ID Bank 1 | . . . . . 1 . . . . . . . . Fabricator Hacks 11 | . . . . . . . . 3 4 4 . . . Network Status 2 | . . . . . . . . 1 . 1 . . . Load Schematic 3 | . . . . . . . . . 2 1 . . . Build 6 | . . . . . . . . 2 2 2 . . . Repair Station Hacks 2 | . . . . . . . . . . 2 . . . Scan Component 1 | . . . . . . . . . . 1 . . . Repair 1 | . . . . . . . . . . 1 . . . Recycling Unit Hacks 2 | . . . . . . . . . . . . . 2 Report Inventory 1 | . . . . . . . . . . . . . 1 Retrieve Matter 1 | . . . . . . . . . . . . . 1 Scanalyzer 2 | . . . . . . . . 2 . . . . . Insert Component 1 | . . . . . . . . 1 . . . . . Analyze 1 | . . . . . . . . 1 . . . . . Garrison Access Hacks 9 | . . . . . . . . 2 2 2 . . 3 Seal Access 9 | . . . . . . . . 2 2 2 . . 3 Unauthorized Hacks 38 | . 3 . 1 . . . 3 7 5 6 2 . 11 Terminals 38 | . 3 . 1 . . . 3 7 5 6 2 . 11 Assimilate 7 | . . . . . . . . . 3 1 . . 3 Botnet 31 | . 3 . 1 . . . 3 7 2 5 2 . 8 Fabricators . | . . . . . . . . . . . . . . Repair Stations . | . . . . . . . . . . . . . . Recycling Units . | . . . . . . . . . . . . . . Scanalyzers . | . . . . . . . . . . . . . . Garrison Access . | . . . . . . . . . . . . . . Data Cores Recovered . | . . . . . . . . . . . . . . Used . | . . . . . . . . . . . . . . Hacking Detections 47 | . 4 . . . . . 3 15 6 10 1 . 8 Full Trace Events 7 | . . . . . . . . 2 4 1 . . . Feedback Events . | . . . . . . . . . . . . . . Feedback Blocked 1 | . . . . . . . . . 1 . . . . Robot Schematics Acquired . | . . . . . . . . . . . . . . Robots Built 2 | . . . . . . . . . . 2 . . . Authchips . | . . . . . . . . . . . . . . Time 27 | . . . . . . . . . . 27 . . . Total Robot Build Rating 2 | . . . . . . . . . . 2 . . . Part Schematics Acquired 6 | . . . . . . . . 2 1 2 1 . . Parts Built 6 | . . . . . . . . 3 2 1 . . . Authchips . | . . . . . . . . . . . . . . Time 435 | . . . . . . . . 190 178 67 . . . Total Part Build Rating 28 | . . . . . . . . 16 8 4 . . . Parts Repaired 1 | . . . . . . . . . . 1 . . . Time 22 | . . . . . . . . . . 22 . . . Parts Recycled . | . . . . . . . . . . . . . . Recycled Matter . | . . . . . . . . . . . . . . Retrieved Matter . | . . . . . . . . . . . . . . Retrieved Components . | . . . . . . . . . . . . . . Parts Scanalyzed 1 | . . . . . . . . 1 . . . . . Part Schematics Acquired 1 | . . . . . . . . 1 . . . . . Parts Damaged . | . . . . . . . . . . . . . . Bothacking | -11 -10 -10 -9 -9 -9 -8 -8 -7 -6 -5 -4 -4 -4 ------------ Run | Yrd Mat Min Mat Min Exi Min Mat Fac Fac Fac Fac Was Fac Used RIF Installer . | . . . . . . . . . . . . . . Robots Hacked . | . . . . . . . . . . . . . . Non-combat . | . . . . . . . . . . . . . . Combat . | . . . . . . . . . . . . . . Robot Hacks Applied . | . . . . . . . . . . . . . . Relay Couplers Released . | . . . . . . . . . . . . . . Fabnet Peak Effective % . | . . . . . . . . . . . . . . Robots Rewired . | . . . . . . . . . . . . . . Allies Hacked 1 | . . . . . . . . . 1 . . . . Hacks Repelled . | . . . . . . . . . . . . . . Allies | -11 -10 -10 -9 -9 -9 -8 -8 -7 -6 -5 -4 -4 -4 -------- Run | Yrd Mat Min Mat Min Exi Min Mat Fac Fac Fac Fac Was Fac Total Allies 9 | . . . . 1 . . . . 3 2 . . 3 Largest Group 3 | . . . . 1 . . . . 2 2 . . 3 Highest-Rated Group 97 | . . . . 31 . . . . 36 16 . . 97 Highest-Rated Ally 45 | . . . . 31 . . . . 26 8 . . 45 Total Orders 10 | . . . . . . . . . 5 1 . 1 3 STAY 5 | . . . . . . . . . 2 . . . 3 FOLLOW 1 | . . . . . . . . . 1 . . . . EXPLORE 4 | . . . . . . . . . 2 1 . 1 . Ally Attacks . | . . . . . . . . . . . . . . Total Damage . | . . . . . . . . . . . . . . Kills . | . . . . . . . . . . . . . . Allies Corrupted . | . . . . . . . . . . . . . . Allies Melted . | . . . . . . . . . . . . . . Intel | -11 -10 -10 -9 -9 -9 -8 -8 -7 -6 -5 -4 -4 -4 ------- Run | Yrd Mat Min Mat Min Exi Min Mat Fac Fac Fac Fac Was Fac Robot Analysis Total . | . . . . . . . . . . . . . . Derelict Logs Recovered 2 | . . 1 . 1 . . . . . . . . . Drone Launches 4 | . . . . . . . . . 2 1 . 1 . Drone Recoveries . | . . . . . . . . . . . . . . Exploration | -11 -10 -10 -9 -9 -9 -8 -8 -7 -6 -5 -4 -4 -4 ------------- Run | Yrd Mat Min Mat Min Exi Min Mat Fac Fac Fac Fac Was Fac Turns Passed 10202 | 97 1051 234 650 818 381 817 369 1331 2055 511 391 37 1460 Spaces Moved 13290 | 61 616 203 298 417 237 459 503 3012 4127 1217 391 86 1663 Core 43 | 43 . . . . . . . . . . . . . Treads 1680 | 18 297 . 237 417 237 459 15 . . . . . . Legs . | . . . . . . . . . . . . . . Wheels 583 | . 319 203 61 . . . . . . . . . . Hover . | . . . . . . . . . . . . . . Flight 10984 | . . . . . . . 488 3012 4127 1217 391 86 1663 Fastest Speed 19 | 50 100 100 100 160 160 160 34 29 20 19 26 26 19 Average Speed 48 | 128 128 100 150 160 160 160 37 30 27 25 26 27 26 Slowest Speed 250 | 250 160 100 160 160 160 240 160 31 29 26 26 28 28 Overloaded Moves 196 | . . . . . . . . . 136 34 . . 26 Propulsion Burnouts . | . . . . . . . . . . . . . . Robots Hopped 43 | . . . . . . . 1 16 20 1 2 . 3 Cave-ins Triggered . | . . . . . . . . . . . . . . Exploration Rate (%) 50 | 5 93 52 23 75 41 79 38 72 54 44 13 80 43 Regions Visited 13 Branch Regions 4 Pre-discovered Areas . | . . . . . . . . . . . . . . Known Exits Taken 7 | . . . 1 . 1 1 1 1 1 1 . . . Unknown Exits Taken 4 | 1 1 1 . 1 . . . . . . . . . Scrap Searched 3 | . . . . 1 . 2 . . . . . . . Spaces Dug 195 | . . . . . . . 7 50 72 25 9 . 32 Terrain Destroyed 201 | . . . . 3 . 2 8 50 72 25 9 . 32 Melee 188 | . . . . . . . . 50 72 25 9 . 32 Projectile 13 | . . . . 3 . 2 8 . . . . . . AOE . | . . . . . . . . . . . . . . Terrain Rammed . | . . . . . . . . . . . . . . Walls Destroyed . | . . . . . . . . . . . . . . Machines Disabled . | . . . . . . . . . . . . . . Actions | -11 -10 -10 -9 -9 -9 -8 -8 -7 -6 -5 -4 -4 -4 --------- Run | Yrd Mat Min Mat Min Exi Min Mat Fac Fac Fac Fac Was Fac Total 16377 | 79 793 224 443 528 239 505 643 3302 4886 1368 670 100 2597 Wait 2319 | 3 123 15 82 65 . 13 90 73 638 108 268 1 840 Move 13194 | 60 615 202 297 416 236 458 500 2979 4088 1214 387 85 1657 Hop 41 | . . . . . . . 1 16 18 1 2 . 3 Pick Up 90 | 10 7 . 14 3 1 3 11 15 11 4 1 3 7 Fast Attach 20 | 2 . . 2 2 . 1 1 8 2 1 . . 1 Attach 35 | 4 3 . 4 . . . 4 1 3 3 2 3 8 Detach 7 | . . . 1 . . . 2 . 1 . . 3 . Swap 63 | . 2 1 6 5 1 2 7 7 12 5 . 2 13 Drop 73 | . 3 1 8 3 1 3 13 19 9 2 1 3 7 Fire 144 | . 40 5 29 33 . 25 12 . . . . . . Melee 255 | . . . . . . . 2 64 89 30 9 . 61 Ram . | . . . . . . . . . . . . . . Kick . | . . . . . . . . . . . . . . Crush 1 | . . . . 1 . . . . . . . . . Escape Stasis 135 | . . . . . . . . 120 15 . . . . Rewire . | . . . . . . . . . . . . . . Trap . | . . . . . . . . . . . . . . Miscellaneous . | . . . . . . . . . . . . . . Route ------- -11/Scrapyard -10/Materials (discovered 4 exits: *Mat x2 / [*Min x2]) -10/Mines -9/Materials (discovered 2 exits: *Min x2) -9/Mines (discovered 3 exits: *Mat / *Exi / [*Zio]) -9/Exiles -8/Mines -8/Materials (discovered 2 exits: *Fac x2) -7/Factory (discovered 4 exits: *Fac x4) -6/Factory (discovered 6 exits: *Fac x4 / *Low x2) -5/Factory (discovered 5 exits: *Fac x4 / [*Ext]) -4/Factory (discovered 2 exits: [*Res] / [*Upp]) -4/Waste -4/Factory (discovered 2 exits: [*Res] / [*Upp]) History --------- Turn | Location | Event 29 | -11/Scrapyard | Discovered new exit (range 15) 98 | -11/Scrapyard | Entered Materials 98 | -10/Materials | Discovered new exit (range 8) 287 | -10/Materials | Discovered new exit (range 14) 303 | -10/Materials | Build established: Mutant 603 | -10/Materials | Discovered new exit (range 16) 1096 | -10/Materials | Discovered new exit (range 15) 1149 | -10/Materials | Entered Mines 1150 | -10/Mines | Assembled infested the area 1182 | -10/Mines | Met a Derelict bent on vengeance 1372 | -10/Mines | Discovered new exit (range 10) 1383 | -10/Mines | Entered Materials 1383 | -9/Materials | Evolved 2 slots: Utility x2 1384 | -9/Materials | Identified exit to Mines 2033 | -9/Materials | Entered Mines 2126 | -9/Mines | Found a hidden stash of uninstalled traps 2207 | -9/Mines | Learned location of 1 exit from Materials 2362 | -9/Mines | A Derelict revealed a hidden shortcut to a safe place 2395 | -9/Mines | Discovered new exit (range 15) 2397 | -9/Mines | Build established: Scavenger-Mutant 2416 | -9/Mines | Received a Mining Laser from a helpful Derelict 2731 | -9/Mines | Build established: Mutant 2843 | -9/Mines | Deemed a non-threat by the Exiles lab entrance 2843 | -9/Mines | Discovered new exit (range 5) 2851 | -9/Mines | Entered Exiles 2891 | -9/Exiles | Met 8R-AWN 2917 | -9/Exiles | Met EX-HEX 2970 | -9/Exiles | Met EX-BIN 2987 | -9/Exiles | Aligned with FarCom system 2989 | -9/Exiles | Given EX-Vault access code 3027 | -9/Exiles | Opened EX-Vault 3034 | -9/Exiles | Found Superbattery 3067 | -9/Exiles | Warned to stay clear of 0b10 Research branches 3173 | -9/Exiles | Discovered new exit (range 15) 3196 | -9/Exiles | Identified exit to Mines 3232 | -9/Exiles | Left Exiles lab with Superbattery 3232 | -9/Exiles | Entered Mines 4037 | -8/Mines | Discovered new exit (range 4) 4048 | -8/Mines | Identified exit to Materials 4049 | -8/Mines | Entered Materials 4049 | -8/Materials | Evolved 2 slots: Propulsion x1, Utility x1 4050 | -8/Materials | Identified exit to Factory 4177 | -8/Materials | Met 7R-MNS 4298 | -8/Materials | Discovered exit to Factory (range 20) 4360 | -8/Materials | Build established: Scout 4391 | -8/Materials | 7R-MNS lamented failing the tripod run 4418 | -8/Materials | Entered Factory 4418 | -7/Factory | Evolved 2 slots: Propulsion x1, Utility x1 4670 | -7/Factory | Discovered new exit (range 5) 4675 | -7/Factory | Identified exit to DSF 4766 | -7/Factory | Fabricated Imp. Launcher Guidance Computer? 4892 | -7/Factory | Discovered new exit (range 7) 4906 | -7/Factory | Discovered new exit (range 4) 4916 | -7/Factory | Build established: Hacker-Scout 5463 | -7/Factory | Central database locked down 5586 | -7/Factory | Fabricated Hvy. Rocket Launcher? 5724 | -7/Factory | Discovered new exit (range 13) 5749 | -7/Factory | Identified exit to Factory 5749 | -7/Factory | Entered another Factory area 5749 | -6/Factory | Evolved 2 slots: Utility x2 5836 | -6/Factory | Spotted B-75 Beast 6106 | -6/Factory | Central database locked down 6206 | -6/Factory | Discovered new exit (range 6) 6453 | -6/Factory | Fabricated Cld. VTOL Module (x1) 6996 | -6/Factory | Fabricated Cld. VTOL Module (x1) 7378 | -6/Factory | Identified exit to Lower Caves 7378 | -6/Factory | Identified exit to Factory 7804 | -6/Factory | Entered another Factory area 7804 | -5/Factory | Evolved 2 slots: Propulsion x1, Utility x1 7887 | -5/Factory | Spotted B-75 Beast 7906 | -5/Factory | Fabricated R-06 Scavenger? 7965 | -5/Factory | Repaired Chainsword 8110 | -5/Factory | Identified exit to Factory 8116 | -5/Factory | Discovered new exit (range 5) 8294 | -5/Factory | Fabricated Cld. VTOL Module (x1) 8315 | -5/Factory | Entered another Factory area 8315 | -4/Factory | Evolved 2 slots: Power x1, Utility x1 8486 | -4/Factory | Discovered new exit (range 14) 8544 | -4/Factory | Spotted B-86 Titan 8698 | -4/Factory | Discovered new exit (range 10) 8706 | -4/Factory | Sucked down chute 8706 | -4/Factory | Entered Waste 8706 | -4/Waste | The area was eerily silent 8707 | -4/Waste | Found Prototype Device 8708 | -4/Waste | Identified Exp. Phase Shifter 8740 | -4/Waste | Discovered new exit (range 11) 8743 | -4/Waste | Entered Factory 8837 | -4/Factory | Found Prototype Processor 8869 | -4/Factory | Discovered new exit (range 11) 9016 | -4/Factory | Discovered new exit (range 18) 9323 | -4/Factory | Identified Exp. Signal Interpreter 10202 | -4/Factory | System corruption reached 10% 10203 | -4/Factory | Self-destructed Last Messages --------------- 10165_ System corrupted: Matter fused (-7). 10168_ ALERT: Rogue bot located, Programmers report to Factory Zone 4G. 10186_ Mic. Fission Core destroyed. 10189_ Biomechanical Wings destroyed. 10192_ Field Propulsion Drive destroyed. 10192_ Cld. VTOL Module destroyed. 10194_ System Shield destroyed. 10195_ P-70 Sage resets P-70 Sage, system corruption cleaned. 10197_ P-70 Sage Imp. Heat Sink severed. 10197_ Structural Scanner destroyed. 10199_ Identified Thunder Hammer. 10199_ Faulty integration triggers system corruption (+4). 10200_ P-70 Sage resets P-70 Sage, system corruption cleaned. 10200_ Dropped Faulty Thunder Hammer. 10201_ Enh. Nuclear Core destroyed. 10202_ Identified Point Defense Array. Map ----- +----------------------------------------------------+ | | | | | | | | | | | | | | | | | | | | | | | | | | | | | | | ???????????????????????????????###########???????? | | ?????????????????????######################??????? | | ?????????????????????############ *##????### | | ?????????????????????## # """ ##????### | | ?????????????????????## """"" #! """ ##????## | | ????+#####???????????## """"" # """ ##????## | | ???? #####???????????## """ # ##????##= | | ??? ???????????## # """ ########= | | ??? ???????????## g= !# """ ########= | | ?? ??????????## p # """ + | | ?? ?????????## /@!p #! # | | ? ????? #########l############## | | # s ???? ######### ####### | | # ss ??? # ################## | | # s ?? # ^ ################## | | ?? # ^^ ##??????????????## ! | | ? # ^ ^ g##?????????????? # | | # ^ ##?????????????? #] | | # ![gg##?????????????? # / | | # ![ *##### ?????????? # / | | g ##### ?????????? # | | # ?????????? ##### | | #### # ?????????? ##### | | ######### + ???????????????? | | ######## # ???????????????? | | #?????##T # ???????????????? | | #############+#?????### # ???????????????? | | #+########### ?????### # ???????????????? | | ??????????????????????## ##???????????????? | | ?????????????????????????## ##???????????????? | | ?????????????????????????## ##???????????????? | | ?????????????????????????## ##???????????????? | | ????????????????????????? # # ???????????????? | | ????????????????????????? # #"???????????????? | | ????????????????????????? # #"???????????????? | +----------------------------------------------------+ Best States ------------- Heat Dissipation 43 Energy Generation 27 Energy Capacity 350 Matter Stores 300 Matter Capacity 300 Sight Range 22 Robot Scan Range 14 Terrain Scan Density 10 Melee Speed Boost 20 Evasion (%) 66 Recoil Reduction 2 Offensive Hacking 40 Defensive Hacking 10 Item Schematics ----------------- Enh. Flexi-carbon Leg | -7/Factory | Hacked Imp. Cesium-ion Thruster | -7/Factory | Scanalyzed Cld. VTOL Module | -6/Factory | Hacked Micro-nuke Launcher | -5/Factory | Hacked Impulse Thruster Array | -5/Factory | Hacked Cloaking Device | -4/Factory | Hacked Robot Schematics ------------------ None Fabricated ------------ Imp. Launcher Guidance Computer | x2 | -7/Factory | Preloaded Hvy. Rocket Launcher | x1 | -7/Factory | Preloaded Cld. VTOL Module | x1 | -6/Factory Cld. VTOL Module | x1 | -6/Factory R-06 Scavenger | x2 | -5/Factory | Preloaded Cld. VTOL Module | x1 | -5/Factory Alien Tech Used ----------------- None Achievements -------------- My Command Is Your Wish Challenges ------------ None Game ------ Seed CarbideCargoPlating Manual? 0 Play Time 03:45:33 Cumulative 50.9 hours Start 2024.11.26 @ 09:19:14 End 2024.11.26 @ 23:40:43 Sessions 11 Manual Loads 0 Difficulty Rogue Special Mode None Game No. 58 Rogue 58 Adventurer 0 Explorer 0 Win Type - Total 0 Types 0/0/0/0/0/0/0/0/0 Lore% 9 Gallery% 27 Achievement% 28 Wizard Run 0 Options --------- Layout 2 ASCII 0 Keyboard 0 Movement Mouse Keybinds 0 Fullscreen 2 Font 16/SmallcapsGlow Map View 55x47 Zoom Use 8% Tactical HUD 1 Map Filters NONE Filters NONE Steam 1 RUN: 8c442f80-aee2-48b3-a581-302130af77c9